Cogmind - Beta 14 *** ADVENTURER MODE // 2024.10.28 @ 20:02:48 Player: Charango24 Result: Destroyed by P-80 Master with Gamma Rifle Performance ------------- Evolutions (5) 2500 Regions Visited (9) 1800 Robots Destroyed (110) 550 Value Destroyed (3904) 3904 Prototype IDs (7) 140 Alien Tech Used (0) 0 Bonus (418) 418 TOTAL SCORE: 9312 Bonus ------- High Alert Combat Kills 66 Follower Combat Kills 352 Cogmind --------- Core Integrity 0/1000 Matter 32/550 Energy 100/100 System Corruption 19% Temperature Cool (0) Movement Core (750) Ox14 Location -5/Factory Parts ------- > --- POWER (2) -------- (None) > --- PROPULSION (3) --- (None) > --- UTILITY (7) ------ High-capacity Storage Unit Matter Compressor Advanced Signal Interpreter System Shield > --- WEAPON (5) ------- (None) > --- INVENTORY (20) --- Light Ion Engine Light Treads Relay Coupler [Brawler] (23) Backup Laser III Assault Cannon Proton Missile Launcher Rocket Launcher Improved Remote Datajack Ripper Power Sword Peak State ------------ > --- POWER ------------ Light Angular Momentum Engine Cold Fusion Reactor > --- PROPULSION ------- Carbon-fiber Leg Flexi-carbon Leg > --- UTILITY ---------- High-capacity Storage Unit Matter Compressor Advanced Terrain Scan Processor Hardened Medium Armor Plating Point Defense System System Shield Drone Bay > --- WEAPON ----------- Mini Assault Cannon Tri-rail Accelerator Greatsword > --- INVENTORY -------- Light Ion Engine Light Treads Carbon-fiber Leg Advanced Signal Interpreter Relay Coupler [Brawler] Backup Laser III Assault Cannon Proton Missile Launcher Rocket Launcher Improved Remote Datajack Ripper Power Sword [Rating: 77] Favorites ----------- Power Backup Power III Engine Backup Power III Power Core Light Nuclear Core Reactor Cold Fusion Reactor Propulsion Carbon-fiber Leg Treads Advanced Heavy Treads Leg Carbon-fiber Leg Wheel Wheel Hover Unit Backup Propulsion III Flight Unit Flight Unit Utility Medium Storage Unit Device Weight Redist. System Storage Medium Storage Unit Processor Improved Targeting Computer Hackware System Shield Protection Improved Light Armor Plating Weapon Mini Assault Cannon Energy Gun Backup Laser III Energy Cannon HERF Cannon Ballistic Gun Minigun Ballistic Cannon Mini Assault Cannon Launcher Improved Proton Missile Launcher Slashing Weapon Centrium Greatsword Build | -11 -10 -10 -9 -8 -7 -7 -7 -6 -5 ------- Run | Yrd Mat Min Mat Mat Fac Was Fac Fac Fac Slots Evolved 10 | . . . 2 2 2 . . 2 2 Power 1 | . . . 1 . . . . . . Propulsion 1 | . . . . . 1 . . . . Utility 5 | . . . 1 2 . . . 2 . Weapon 3 | . . . . . 1 . . . 2 Parts Attached 100 | 6 24 2 10 6 1 2 8 17 24 Power 8 | 1 1 . 1 . . . . 3 2 Engine 5 | 1 1 . . . . . . 1 2 Core 2 | . . . 1 . . . . 1 . Reactor 1 | . . . . . . . . 1 . Propulsion 34 | 2 11 1 4 1 . . 3 6 6 Treads 3 | . . . . . . . . 2 1 Leg 16 | 2 1 . 2 1 . . 3 4 3 Wheel 7 | . 2 1 2 . . . . . 2 Hover 4 | . 4 . . . . . . . . Flight 4 | . 4 . . . . . . . . Utility 26 | 1 5 . 2 3 . 1 3 5 6 Device 5 | . . . . . . . . 3 2 Storage 6 | 1 3 . . . . . . 1 1 Processor 7 | . 2 . 2 1 . . . . 2 Hackware 3 | . . . . 1 . . 1 1 . Protection 5 | . . . . 1 . 1 2 . 1 Artifact . | . . . . . . . . . . Weapon 32 | 2 7 1 3 2 1 1 2 3 10 Energy Gun 4 | . . . 1 . . . . . 3 Energy Cannon 1 | . . . . . . . . 1 . Ballistic Gun 9 | 2 3 1 2 1 . . . . . Ballistic Cannon 10 | . 4 . . 1 . . 2 1 2 Launcher 3 | . . . . . . . . . 3 Special Weapon . | . . . . . . . . . . Impact Weapon . | . . . . . . . . . . Slashing Weapon 5 | . . . . . 1 1 . 1 2 Piercing Weapon . | . . . . . . . . . . Special Melee Weapon . | . . . . . . . . . . Unidentified Prototypes 5 | . . . 1 . . 1 1 1 1 Parts Lost 37 | . 1 1 4 1 1 . . 8 21 Power 7 | . 1 . 1 . 1 . . 2 2 Propulsion 14 | . . 1 2 1 . . . 3 7 Utility 9 | . . . . . . . . 2 7 Weapon 7 | . . . 1 . . . . 1 5 Highest Loss Streak 5 | . 1 1 1 1 1 . . 3 5 To Critical Strikes 2 | . . . . . . . . 1 1 Average Slot Usage (%) 88 | . 96 94 86 89 81 83 86 91 73 Engine 9 | . 13 14 6 . . 13 15 5 2 Core 1 | . . . 4 9 4 . . 1 . Reactor 1 | . . . . . . . . 4 3 Treads 1 | . . . . . . . . 5 . Leg 10 | . 11 . 8 17 15 15 14 7 10 Wheel 3 | . 5 22 12 . . . . . . Hover 1 | . 6 . . . . . 2 1 . Device 3 | . . . . . . . . 13 7 Storage 9 | . 14 14 11 9 7 7 7 6 10 Processor 13 | . 13 14 22 18 15 15 15 13 5 Hackware 6 | . . . . 9 7 7 14 12 5 Protection 1 | . . . . 9 7 7 . . 2 Ballistic Gun 5 | . 17 1 16 10 7 . . . . Ballistic Cannon 9 | . 8 26 5 7 7 7 7 8 9 Slashing Weapon 3 | . . . . . 7 7 7 4 4 Peak Build Rating 77 | 6 8 10 18 27 29 44 53 70 77 Average Rating 35 | 3 7 7 12 25 28 42 48 59 56 On Entrance 22 | . 6 8 10 16 27 26 44 50 40 Naked Turns . | . . . . . . . . . . Heaviest Build 106 | 13 21 21 21 26 29 32 36 78 106 Greatest Support 96 | 20 20 20 26 25 25 25 53 96 50 Greatest Overweight (x) 26 | 2 4 2 2 1 1 1 2 1 26 Average Overweight (x) . | . . 1 . . . . . . 2 Largest Inventory Capacity 20 | 8 10 10 10 10 10 10 10 20 20 Average Capacity 12 | 6 8 10 10 10 10 10 10 16 20 Most Carried 18 | 5 10 10 10 10 7 10 10 18 14 Average Carried 9 | 2 6 8 8 8 7 8 9 12 10 Final Capacity 20 | 8 10 10 10 10 10 10 10 20 20 Final Carried 14 | 2 7 9 8 8 7 10 10 14 10 Class Distribution -------------------- 51% | Hacker-Mutant 31% | Mutant 7% | Hacker-Tank 5% | Scavenger-Mutant 3% | Hacker-Gunner Dominant Class ---------------- Mutant | -10/Materials Mutant | -10/Mines Mutant | -9/Materials Hacker-Mutant | -8/Materials Hacker-Mutant | -7/Factory Hacker-Mutant | -7/Waste Hacker-Mutant | -7/Factory Hacker-Mutant | -6/Factory Hacker-Tank | -5/Factory Resources | -11 -10 -10 -9 -8 -7 -7 -7 -6 -5 ----------- Run | Yrd Mat Min Mat Mat Fac Was Fac Fac Fac Matter Collected 3122 | 207 593 253 417 215 . 117 176 603 541 Remotely . | . . . . . . . . . . Salvage Created 3372 | . 549 228 867 243 46 . 173 513 753 Parts 221 | . 46 22 62 18 5 . 11 16 41 Haulers Intercepted 1 | . 1 . . . . . . . . Recyclers Shooed 2 | . 1 . . . . . . . 1 Parts Field Recycled . | . . . . . . . . . . Retrieved Matter . | . . . . . . . . . . Parts Self-Destructed . | . . . . . . . . . . Prevented . | . . . . . . . . . . Kills | -11 -10 -10 -9 -8 -7 -7 -7 -6 -5 ------- Run | Yrd Mat Min Mat Mat Fac Was Fac Fac Fac Combat Hostiles Destroyed 81 | . 10 10 16 8 1 . 4 13 19 Melee 7 | . . . . . . . 1 2 4 Guns 23 | . 6 . 11 5 . . . . 1 Cannons 45 | . 4 10 5 3 1 . 3 10 9 AOE 6 | . . . . . . . . 1 5 Classes Destroyed 15 | . 7 1 3 1 . . 1 1 1 Worker 5 | . . 3 . . . . 1 . 1 Builder 6 | . 2 1 . . . . . . 3 Tunneler 2 | . 2 . . . . . . . . Hauler 1 | . 1 . . . . . . . . Recycler 4 | . 2 . 2 . . . . . . Mechanic 1 | . . . . . . . . . 1 Operator 2 | . . . 1 . . . 1 . . Watcher 8 | . 3 . 3 1 . . . . 1 Swarmer 22 | . 3 7 3 4 . . 2 . 3 Grunt 27 | . 7 3 5 1 . . . 5 6 Brawler 3 | . . . 1 . . . . 1 1 Duelist 1 | . . . . . . . . 1 . Sentry 13 | . . . 7 2 1 . 1 1 1 Hunter 6 | . . . . 1 . . . 2 3 Programmer 9 | . . . . . . . 1 3 5 Best Kill Streak 6 | . 4 3 4 4 1 . 2 4 6 Combat Bots Only 5 | . 3 3 3 4 1 . 2 4 5 Max Kills in Single Turn 3 | . 1 1 2 1 1 . 1 1 3 Gunslinging . | . . . . . . . . . . Exploded 2 | . . . . . . . . 1 2 Melee 1 | . . . . . . . 1 1 1 Uniques/NPCs Destroyed . | . . . . . . . . . . Combat | -11 -10 -10 -9 -8 -7 -7 -7 -6 -5 -------- Run | Yrd Mat Min Mat Mat Fac Was Fac Fac Fac Hostile Shots Fired 692 | . 46 23 60 36 27 . 66 145 289 Missed 216 | . 9 3 15 12 14 . 22 46 95 Damage Taken 6271 | . 334 147 453 231 139 . 421 1483 3063 Core 1498 | . 68 39 83 14 8 . 59 208 1019 Absorbed by Shields . | . . . . . . . . . . Ignored by Resistances 1804 | . 102 44 128 67 43 . 135 429 856 Regen/Repaired (Parts) 388 | . . . . . . 25 209 154 . Core Remaining (%) 83 | 100 . 57 79 97 . . 90 75 . Volleys Fired 288 | . 79 26 48 22 4 . 16 51 42 Largest 4 | . 2 2 2 2 2 . 1 2 4 Hottest 216 | . 70 70 60 69 69 . 48 136 216 Shots Fired 540 | . 139 52 93 44 8 . 16 88 100 Gun 217 | . 101 . 68 28 4 . . . 16 Cannon 318 | . 38 52 25 16 4 . 16 88 79 Launcher 5 | . . . . . . . . . 5 Special . | . . . . . . . . . . Kinetic 511 | . 139 52 93 44 8 . 16 80 79 Thermal 16 | . . . . . . . . . 16 Explosive 3 | . . . . . . . . . 3 Electromagnetic 10 | . . . . . . . . 8 2 Robot Hit Streak 22 | . 22 13 13 12 4 . 7 10 9 Robot Miss Streak 4 | . 3 2 2 3 1 . 3 3 4 Penetration Max . | . . . . . . . . . . Secondary Targets 1 | . . . 1 . . . . . . Max Gunslinging Chain 1 | . . . 1 . . . . . . Shots Hit Robots 393 | . 103 30 67 29 6 . 14 66 78 Core Hits 183 | . 39 15 32 14 3 . 5 26 49 Critical Kills 4 | . . . . . . . . 4 . Critical Parts Destroyed 6 | . . . . . . . . 6 . Critical Strikes 27 | . 1 2 . . . . . 16 8 Burn 2 | . . . . . . . . . 2 Destroy 11 | . . . . . . . . 11 . Blast 11 | . 1 2 . . . . . 3 5 Sever 3 | . . . . . . . . 2 1 Melee Attacks 25 | . . . . . . . 3 10 12 Impact . | . . . . . . . . . . Slashing 25 | . . . . . . . 3 10 12 Piercing . | . . . . . . . . . . Sneak Attacks 3 | . . . . . . . 1 . 2 Combat Hostiles . | . . . . . . . . . . Follow-up Attacks . | . . . . . . . . . . Damage Inflicted 9711 | . 1266 551 1130 562 132 . 558 1693 3819 Guns 2202 | . 698 . 793 322 55 . . . 334 Cannons 5571 | . 568 551 337 240 77 . 295 1396 2107 Explosions 886 | . . . . . . . . 39 847 Melee 1052 | . . . . . . . 263 258 531 Ramming . | . . . . . . . . . . Kinetic 7313 | . 1266 551 1130 562 132 . 295 1270 2107 Thermal 771 | . . . . . . . . . 771 Explosive 309 | . . . . . . . . 39 270 Electromagnetic 266 | . . . . . . . . 126 140 Impact . | . . . . . . . . . . Slashing 1052 | . . . . . . . 263 258 531 Piercing . | . . . . . . . . . . Highest Corruption 19 | . . . 4 . . . . 1 19 Average Corruption 7 | . . . 4 . . . . 1 11 Corruption Purged . | . . . . . . . . . . Corruption Blocked . | . . . . . . . . . . Effects 59 | . . . 8 . . . . 3 48 Message Errors 18 | . . . 3 . . . . 1 14 Matter Fused 15 | . . . 2 . . . . 1 12 Heat Flow Errors 4 | . . . . . . . . . 4 Energy Discharges 5 | . . . 1 . . . . . 4 Parts Rejected 1 | . . . . . . . . . 1 Data Loss (minor) 7 | . . . 1 . . . . . 6 Data Loss (major) 1 | . . . . . . . . . 1 Misfires 1 | . . . . . . . . . 1 Alerts 2 | . . . . . . . . 1 1 Misdirections 2 | . . . . . . . . . 2 Weapon Failures 3 | . . . 1 . . . . . 2 Overload Shots . | . . . . . . . . . . Overflow Damage 468 | . 18 . . 4 . . 114 97 235 Projectiles 109 | . 18 . . 4 . . 10 26 51 Explosions 142 | . . . . . . . . 71 71 Melee 217 | . . . . . . . 104 . 113 Knockbacks 49 | . 13 7 1 3 . . 2 9 14 Impact . | . . . . . . . . . . Kinetic 47 | . 12 6 1 3 . . 2 9 14 Secondary 2 | . 1 1 . . . . . . . Self-Inflicted Damage 187 | . . . . . . . . 79 108 Shots 3 | . . . . . . . . 1 2 Rammed . | . . . . . . . . . . Targets Rammed . | . . . . . . . . . . Kicked . | . . . . . . . . . . Crushed . | . . . . . . . . . . Highest Temperature 396 | . 78 78 41 80 28 . 32 102 396 Average Temperature 43 | . 21 18 14 32 19 . 18 32 91 Received Heat Transfer 1236 | . 201 48 198 63 30 . 120 282 294 Siege Activations . | . . . . . . . . . . Robots Corrupted . | . . . . . . . . . . Combat Hostiles . | . . . . . . . . . . Parts Fried . | . . . . . . . . . . Impact Corruptions . | . . . . . . . . . . Robots Melted . | . . . . . . . . . . Combat Hostiles . | . . . . . . . . . . Parts Melted 1 | . . . . . . . . . 1 Heat Transferred 916 | . . . . . . . . . 916 Parts Sabotaged . | . . . . . . . . . . Parts Stolen . | . . . . . . . . . . Parts Stripped . | . . . . . . . . . . Power Chain Reactions . | . . . . . . . . . . Alert | -11 -10 -10 -9 -8 -7 -7 -7 -6 -5 ------- Run | Yrd Mat Min Mat Mat Fac Was Fac Fac Fac Peak Influence 534 | . 123 321 429 338 89 25 214 328 534 Initial 145 | . . 9 57 145 69 25 . 26 24 Average 100 | . 35 154 272 188 73 17 52 61 182 Maximum Alert Level 2 | . . 1 2 1 . . 1 1 2 Low Security (%) 82 | 100 100 81 27 62 100 100 97 89 61 Level 1 14 | . . 18 61 37 . . 2 10 24 Level 2 2 | . . . 11 . . . . . 13 Level 3 . | . . . . . . . . . . Level 4 . | . . . . . . . . . . Level 5 . | . . . . . . . . . . High Security . | . . . . . . . . . . Max Security . | . . . . . . . . . . Squads Dispatched 16 | . . 1 3 . . . 5 4 3 Investigation 2 | . . 1 1 . . . . . . Extermination 8 | . . . . . . . 3 3 2 Reinforcement 4 | . . . 2 . . . 1 . 1 Assault 1 | . . . . . . . . 1 . Garrison 1 | . . . . . . . 1 . . Intercept . | . . . . . . . . . . Searches Triggered . | . . . . . . . . . . Construction Impeded 1 | . . . . . . . . . 1 Haulers Reinforced . | . . . . . . . . . . Active Scanning Responses . | . . . . . . . . . . Cargo Convoy Interrupts . | . . . . . . . . . . Stealth | -11 -10 -10 -9 -8 -7 -7 -7 -6 -5 --------- Run | Yrd Mat Min Mat Mat Fac Was Fac Fac Fac Distress Signals 8 | . 1 . 3 . 1 . 1 . 2 Communications Jammed . | . . . . . . . . . . Distress Signals . | . . . . . . . . . . Times Spotted 135 | . 20 14 26 10 2 1 16 14 32 Peak Tracking Total 5 | . 3 3 5 4 2 1 3 5 5 Tactical Retreats 14 | . 1 2 2 . . . 1 1 7 Traps | -11 -10 -10 -9 -8 -7 -7 -7 -6 -5 ------- Run | Yrd Mat Min Mat Mat Fac Was Fac Fac Fac Traps Triggered 3 | . . . . . 1 . 2 . . Indirectly . | . . . . . . . . . . Trap Hack Attempts . | . . . . . . . . . . Triggered . | . . . . . . . . . . Disarmed 7 | . . . . . . . 7 . . Reprogrammed . | . . . . . . . . . . Reused . | . . . . . . . . . . Traps Extracted . | . . . . . . . . . . Installed . | . . . . . . . . . . Triggered 2 | . . . . . . . 1 . 1 Machines | -11 -10 -10 -9 -8 -7 -7 -7 -6 -5 ---------- Run | Yrd Mat Min Mat Mat Fac Was Fac Fac Fac Machines Disabled 21 | . . . . . . . 2 5 14 Max in Single Turn 14 | . . . . . . . . 1 14 Garrison Access 3 | . . . . 1 . . . 1 1 Machines Repaired . | . . . . . . . . . . Machines Dismantled . | . . . . . . . . . . Machines Sabotaged . | . . . . . . . . . . Overloaded Fab Kills . | . . . . . . . . . . Hacking | -11 -10 -10 -9 -8 -7 -7 -7 -6 -5 --------- Run | Yrd Mat Min Mat Mat Fac Was Fac Fac Fac Machines Accessed 29 | . 3 2 2 3 . . 5 12 2 Terminals 17 | . 3 1 2 2 . . 2 6 1 Fabricators 4 | . . . . . . . 1 3 . Repair Stations 3 | . . . . . . . 2 1 . Recycling Units . | . . . . . . . . . . Scanalyzers 1 | . . . . . . . . 1 . Garrison Access 3 | . . . . 1 . . . 1 1 Total Hacks 69 | . 3 3 5 9 . . 20 27 2 Successful 46 | . 3 2 3 8 . . 14 14 2 Failed 23 | . . 1 2 1 . . 6 13 . Catastrophic 3 | . . . . . . . 1 2 . Database Lockouts . | . . . . . . . . . . Manual . | . . . . . . . . . . Terminals 45 | . 3 2 5 8 . . 13 13 1 Fabricators 7 | . . . . . . . 1 6 . Repair Stations 10 | . . . . . . . 6 4 . Recycling Units . | . . . . . . . . . . Scanalyzers 1 | . . . . . . . . 1 . Garrison Access 5 | . . . . 1 . . . 3 1 Terminal Hacks 32 | . 3 2 3 7 . . 10 6 1 Record 3 | . 2 . 1 . . . . . . Prototype ID Bank 1 | . . . . . . . 1 . . Open Door 1 | . . 1 . . . . . . . Level Access Points 1 | . . . 1 . . . . . . Branch Access Points 1 | . . . . 1 . . . . . Emergency Access Points 1 | . . . . 1 . . . . . Recycling Unit Index 1 | . . . . . . . 1 . . Alert Level 6 | . . . 1 2 . . 1 1 1 Unreport Threat 1 | . . . . . . . . 1 . Locate Traps 5 | . 1 . . . . . 2 2 . Disarm Traps 2 | . . . . . . . 2 . . Dispatch Records 3 | . . 1 . 1 . . 1 . . Security Status 1 | . . . . . . . . 1 . Surveillance Status 1 | . . . . 1 . . . . . Patrol Status 1 | . . . . 1 . . . . . Investigation Status 1 | . . . . . . . 1 . . Recall Reinforcements 1 | . . . . . . . . 1 . Zone Layout 1 | . . . . . . . 1 . . Fabricator Hacks 4 | . . . . . . . . 4 . Network Status 2 | . . . . . . . . 2 . Build 2 | . . . . . . . . 2 . Repair Station Hacks 7 | . . . . . . . 4 3 . Scan Component 4 | . . . . . . . 2 2 . Repair 3 | . . . . . . . 2 1 . Recycling Unit Hacks . | . . . . . . . . . . Scanalyzer 1 | . . . . . . . . 1 . Insert Component 1 | . . . . . . . . 1 . Garrison Access Hacks 2 | . . . . 1 . . . . 1 Seal Access 2 | . . . . 1 . . . . 1 Unauthorized Hacks . | . . . . . . . . . . Terminals . | . . . . . . . . . . Fabricators . | . . . . . . . . . . Repair Stations . | . . . . . . . . . . Recycling Units . | . . . . . . . . . . Scanalyzers . | . . . . . . . . . . Garrison Access . | . . . . . . . . . . Data Cores Recovered 2 | . . . 1 . . . 1 . . Used 1 | . . . 1 . . . . . . Hacking Detections 16 | . 1 . 2 2 . . 3 7 1 Full Trace Events . | . . . . . . . . . . Feedback Events . | . . . . . . . . . . Feedback Blocked . | . . . . . . . . . . Robot Schematics Acquired . | . . . . . . . . . . Robots Built . | . . . . . . . . . . Authchips . | . . . . . . . . . . Time . | . . . . . . . . . . Total Robot Build Rating . | . . . . . . . . . . Part Schematics Acquired . | . . . . . . . . . . Parts Built 1 | . . . . . . . . 1 . Authchips . | . . . . . . . . . . Time 223 | . . . . . . . . 223 . Total Part Build Rating 8 | . . . . . . . . 8 . Parts Repaired 3 | . . . . . . . 2 1 . Time 109 | . . . . . . . 60 49 . Parts Recycled . | . . . . . . . . . . Recycled Matter . | . . . . . . . . . . Retrieved Matter . | . . . . . . . . . . Retrieved Components . | . . . . . . . . . . Parts Scanalyzed . | . . . . . . . . . . Part Schematics Acquired . | . . . . . . . . . . Parts Damaged . | . . . . . . . . . . Bothacking | -11 -10 -10 -9 -8 -7 -7 -7 -6 -5 ------------ Run | Yrd Mat Min Mat Mat Fac Was Fac Fac Fac Used RIF Installer . | . . . . . . . . . . Robots Hacked . | . . . . . . . . . . Non-combat . | . . . . . . . . . . Combat . | . . . . . . . . . . Robot Hacks Applied . | . . . . . . . . . . Relay Couplers Released 1 | . . . . . . . . 1 . Machine Destruction 1 | . . . . . . . . 1 . Fabnet Peak Effective % . | . . . . . . . . . . Robots Rewired . | . . . . . . . . . . Allies Hacked 1 | . . . . . . . 1 . . Hacks Repelled . | . . . . . . . . . . Allies | -11 -10 -10 -9 -8 -7 -7 -7 -6 -5 -------- Run | Yrd Mat Min Mat Mat Fac Was Fac Fac Fac Total Allies 21 | . . 1 . . . 20 . . . Largest Group 20 | . . 1 . . . 20 20 2 . Highest-Rated Group 493 | . . 31 . . . 493 493 47 . Highest-Rated Ally 31 | . . 31 . . . 31 31 27 . Total Orders . | . . . . . . . . . . Ally Attacks 134 | . . 8 . . . 17 100 9 . Total Damage 2165 | . . 105 . . . 291 1483 286 . Kills 13 | . . 2 . . . 1 9 1 . Allies Corrupted 3 | . . . . . . . 3 . . Allies Melted . | . . . . . . . . . . Intel | -11 -10 -10 -9 -8 -7 -7 -7 -6 -5 ------- Run | Yrd Mat Min Mat Mat Fac Was Fac Fac Fac Robot Analysis Total . | . . . . . . . . . . Derelict Logs Recovered 2 | . . 2 . . . . . . . Drone Launches 2 | . . . . . . . . . 2 Drone Recoveries 2 | . . . . . . . . . 2 Exploration | -11 -10 -10 -9 -8 -7 -7 -7 -6 -5 ------------- Run | Yrd Mat Min Mat Mat Fac Was Fac Fac Fac Turns Passed 8867 | 69 1702 708 558 738 55 558 1493 1699 1287 Spaces Moved 5042 | 54 1198 618 371 380 26 298 927 789 381 Core 42 | 27 . . . . . . . . 15 Treads 545 | . . . . . . . . 545 . Legs 2716 | 27 468 . 130 380 26 298 813 244 330 Wheels 1216 | . 321 618 241 . . . . . 36 Hover 399 | . 285 . . . . . 114 . . Flight 124 | . 124 . . . . . . . . Fastest Speed 50 | 50 56 95 90 120 120 120 120 120 110 Average Speed 143 | 103 115 99 103 172 165 181 143 160 256 Slowest Speed 1350 | 150 370 110 120 190 190 190 250 225 1350 Overloaded Moves . | . . . . . . . . . . Propulsion Burnouts . | . . . . . . . . . . Robots Hopped . | . . . . . . . . . . Cave-ins Triggered . | . . . . . . . . . . Exploration Rate (%) 41 | 3 84 85 43 46 2 96 22 18 13 Regions Visited 9 Branch Regions 1 Pre-discovered Areas 1 | . . 1 . . . . . . . Known Exits Taken 6 | . 1 1 1 1 . . 1 1 . Unknown Exits Taken 1 | 1 . . . . . . . . . Scrap Searched 1 | . . 1 . . . . . . . Spaces Dug . | . . . . . . . . . . Terrain Destroyed 127 | . . . . 2 . . 2 59 64 Melee . | . . . . . . . . . . Projectile 33 | . . . . 2 . . 2 19 10 AOE 94 | . . . . . . . . 40 54 Terrain Rammed . | . . . . . . . . . . Walls Destroyed . | . . . . . . . . . . Machines Disabled . | . . . . . . . . . . Actions | -11 -10 -10 -9 -8 -7 -7 -7 -6 -5 --------- Run | Yrd Mat Min Mat Mat Fac Was Fac Fac Fac Total 6114 | 67 1385 661 457 422 31 318 1066 1118 589 Wait 532 | . 49 2 22 3 . 12 103 228 113 Move 5034 | 53 1197 617 370 379 26 297 926 788 381 Hop . | . . . . . . . . . . Pick Up 90 | 8 20 8 6 8 . 4 6 18 12 Fast Attach . | . . . . . . . . . . Attach 57 | 6 7 1 5 3 1 1 2 11 20 Detach 10 | . 3 . . . . 1 . 1 5 Swap 43 | . 17 1 5 3 . 1 6 6 4 Drop 34 | . 13 5 1 4 . 2 4 5 . Fire 288 | . 79 26 48 22 4 . 16 51 42 Melee 25 | . . . . . . . 3 10 12 Ram . | . . . . . . . . . . Kick . | . . . . . . . . . . Crush . | . . . . . . . . . . Escape Stasis . | . . . . . . . . . . Rewire 1 | . . 1 . . . . . . . Trap . | . . . . . . . . . . Miscellaneous . | . . . . . . . . . . Route ------- -11/Scrapyard -10/Materials (discovered 4 exits: *Mat x3 / *Min) -10/Mines (discovered 2 exits: *Mat x2) -9/Materials (discovered 5 exits: *Mat x3 / *Min / [*Sto]) -8/Materials -7/Factory -7/Waste -7/Factory -6/Factory -5/Factory (discovered 1 exit: [*Upp]) History --------- Turn | Location | Event 5 | -11/Scrapyard | Discovered new exit (range 15) 70 | -11/Scrapyard | Entered Materials 286 | -10/Materials | Discovered new exit (range 8) 301 | -10/Materials | Build established: Mutant 577 | -10/Materials | Discovered new exit (range 16) 1080 | -10/Materials | Discovered new exit (range 8) 1097 | -10/Materials | Identified exit to Materials 1580 | -10/Materials | Discovered new exit (range 15) 1590 | -10/Materials | Identified exit to Mines 1772 | -10/Materials | Entered Mines 1801 | -10/Mines | Discovered exit to Materials (range 15) 1921 | -10/Mines | Learned location of Storage (-9) 1966 | -10/Mines | Received a Mining Laser from a helpful Derelict 2325 | -10/Mines | Discovered exit to Materials (range 11) 2328 | -10/Mines | Learned Materials trap positions 2416 | -10/Mines | Met a Derelict shopkeep closing up shop 2480 | -10/Mines | Entered Materials 2480 | -9/Materials | Evolved 2 slots: Power x1, Utility x1 2481 | -9/Materials | Loaded intel: 31 trap records 2523 | -9/Materials | Discovered new exit (range 15) 2671 | -9/Materials | Discovered new exit (range 13) 2736 | -9/Materials | Identified exit to Mines 2993 | -9/Materials | Discovered new exit (range 10) 3004 | -9/Materials | Identified exit to Materials 3038 | -9/Materials | Entered another Materials area 3038 | -8/Materials | Evolved 2 slots: Utility x2 3117 | -8/Materials | Build established: Scavenger-Mutant 3416 | -8/Materials | Discovered new exit (range 15) 3475 | -8/Materials | Identified exit to Factory 3617 | -8/Materials | Build established: Hacker-Mutant 3776 | -8/Materials | Entered Factory 3776 | -7/Factory | Evolved 2 slots: Propulsion x1, Weapon x1 3828 | -7/Factory | Discovered new exit (range 7) 3831 | -7/Factory | Sucked down chute 3831 | -7/Factory | Entered Waste 3832 | -7/Waste | Joined by Warlord forces that had cleared the area 3981 | -7/Waste | Discovered new exit (range 11) 4371 | -7/Waste | A Compactor rumbled back to life 4371 | -7/Waste | Spotted C-40 Crusher 4374 | -7/Waste | Allies destroyed C-40 Crusher 4379 | -7/Waste | Identified exit to Factory 4389 | -7/Waste | Entered Factory 4389 | -7/Factory | Accompanied by 20 allies 4681 | -7/Factory | Garrison activated, responded to threat 4876 | -7/Factory | Lost 9 allies 4980 | -7/Factory | P-60 Hacker assimilated allied CY-MUZ(g) 4984 | -7/Factory | Repaired Imp. Titanium Leg 5461 | -7/Factory | Repaired Carbon-fiber Leg 5856 | -7/Factory | Discovered new exit (range 10) 5866 | -7/Factory | Identified exit to Factory 5882 | -7/Factory | Entered another Factory area 5882 | -6/Factory | Accompanied by 2 allies 5882 | -6/Factory | Evolved 2 slots: Utility x2 6135 | -6/Factory | Repaired Centrium Greatsword 6274 | -6/Factory | Fabricated Adv. Heavy Treads (x1) 7400 | -6/Factory | Lost 3 parts (1p1n1u) 7566 | -6/Factory | Lost 3 parts (1n1u1w) 7568 | -6/Factory | Discovered new exit (range 9) 7579 | -6/Factory | Identified exit to Factory 7581 | -6/Factory | Entered another Factory area 7581 | -5/Factory | Evolved 2 slots: Weapon x2 7864 | -5/Factory | Lost 5 parts (1p4u) 7873 | -5/Factory | Build established: Hacker-Gunner 7882 | -5/Factory | System corruption reached 10% 8357 | -5/Factory | Build established: Hacker-Tank 8728 | -5/Factory | Lost 4 parts (1n3w) 8767 | -5/Factory | Core integrity fell below 50% 8810 | -5/Factory | Discovered new exit (range 14) 8830 | -5/Factory | Core integrity fell below 20% 8868 | -5/Factory | Destroyed by P-80 Master with Gamma Rifle Last Messages --------------- K-01 Serf collects debris. System corrupted: Matter fused (-6). U-05 Engineer lays Concrete. K-01 Serf collects debris. U-05 Engineer lays Concrete. K-01 Serf collects debris. U-05 Engineer lays Concrete. K-01 Serf collects debris. U-05 Engineer lays Concrete. K-01 Serf collects debris. U-05 Engineer lays Concrete. R-10 Processor collects Wheel. U-05 Engineer lays Concrete. K-01 Serf collects debris. U-05 Engineer lays Concrete. K-01 Serf collects debris. P-80 Master resets K-01 Serf, system corruption cleaned. K-01 Serf collects debris. U-05 Engineer lays Concrete. Map ----- +----------------------------------------------------+ | ?????????????????????????????????????????????????? | | ?????????????????????????????????????????????????? | | ?????????????????????????????????????????????????? | | ?????????????????????????????????????????????????? | | ?????????????????????????????????????????????????? | | ?????????????????????????????????????????????????? | | ?????????????????????????????????????????????????? | | ?????????????????????????????????????????????????? | | ?????????????????????????????????????????????????? | | ?????????????????????????????????????????????????? | | ?????????????????????????????????????????????????? | | ?????????????????????????????????????????????????? | | ?????????????????????????????????????????????????? | | ?????????????????????????????????????????????????? | | ?????????????????????????????????????????????????? | | ?????????? ???????###???????????????????????????? | | ???????? ??????# #???????????????????????????? | | ???????? ??????# #???????????????????????????? | | ???????? ???### ######??????????????????????? | | ???????? ?###;;; ;;;###????????????????????? | | ????????? # #? ##???????????????? | | ??????????? # u # < ??????????????? | | ????????????? # # #????????????????? | | ??????????????## k ##???????????????????? | | ????????######## u k ;####????????????????? | | ?????? + @ ; #????????????????? | | ?????????????### k ####????????????????? | | ?????????????# ; ;#???????????????????? | | ?????????????# ;!k R ;#???????????????????? | | ?????????????##; = ;#???????????????????? | | ??????????????#; p %[* ;#???????????????????? | | ??????????????#; ##???????????????????? | | ??????????????#;;;; ;;;;####?????????????????? | | ???????????? #????############## | | ???????????? k ###### # | | ???????????# / " " " ""? # | | ???????????# ###### " " " """ # | | ???????????# #????# " " " R" # | | ???????????# ######### #????# " " " """ # | | ???????????# ????????# #????# " " " "" # | | ???????????# ????????# #????# " " " # | | ???????????+ ????????# #????# " " " # | | ?????????????? ?????????# #????# " " " # | | ?????????????????????????+ #????# " " " # | | ?????????????????????????# #????# # | | ?????????????????????????# #????# # | | ?????????????????????????# #???########+##""## | | ?????????????????????????# % %!% | | ?????????????????????????# ? % %% | | ?????????????????????????? ? %% | +----------------------------------------------------+ Best States ------------- Heat Dissipation 40 Energy Generation 30 Energy Capacity 260 Matter Stores 300 Matter Capacity 550 Sight Range 16 Terrain Scan Density 210 Jamming Range 12 Additional Mass Support 6 Armor Coverage 225 Resistance: KI 20 Resistance: TH 20 Resistance: EX 20 Resistance: EM 20 Resistance: I 20 Resistance: S 20 Resistance: P 20 Point Defense Rating 80 Evasion (%) 55 Targeting Accuracy 6 Recoil Reduction 3 Kinecelleration 30 Offensive Hacking 22 Defensive Hacking 10 Item Schematics ----------------- None Robot Schematics ------------------ None Fabricated ------------ Adv. Heavy Treads | x1 | -6/Factory | Preloaded Alien Tech Used ----------------- None Achievements -------------- It Was An Accident, I Swear No Signal System Compromised The More The Merrier Universal Adapter We Are Legion Challenges ------------ None Game ------ Seed BraceRiotChronowheel Manual? 0 Play Time 01:23:42 Cumulative 8.2 hours Start 2024.10.28 @ 14:57:02 End 2024.10.28 @ 20:02:48 Sessions 3 Manual Loads 0 Difficulty Adventurer Special Mode None Game No. 12 Rogue 0 Adventurer 12 Explorer 0 Win Type - Total 0 Types 0/0/0/0/0/0/0/0/0 Lore% 5 Gallery% 18 Achievement% 17 Wizard Run 0 Options --------- Layout 1 ASCII 0 Keyboard 0 Movement Numpad Keybinds 0 Fullscreen 2 Font 16/SmallcapsGlow Map View 55x37 Zoom Use 0% Tactical HUD 0 Map Filters NONE Filters NONE Steam 1 RUN: 96834092-5f46-46b5-89d7-1d26288e5212